{"text_format":"1","workbook":"xlsx","n_sheets":5,"sheets":["Instructions","Page1 - Expense Report","Page 2 - Travel Expenses","per diem tables","Cities"],"not_rendered":{"charts":0,"images":1,"macros":1,"external_links":3,"defined_names":26,"comments":0,"pivot_tables":0},"unopened":[],"bounds":{"document_bytes":16777216,"sheet_cells":100000,"rows_first":2000,"rows_last":500,"rows_between":2000,"halvings":0,"cell_chars":16384,"cell_head_chars":4096},"cells_cut":0,"cells_raw":0,"read":"whole","date_system":"1900"}

{"sheet":"Instructions","index":0,"n_rows":77,"n_cols":6,"rows_kept":77,"cut":false,"hidden":false,"merged":[[24,0,24,1],[23,2,23,12],[5,0,5,1],[11,0,11,1],[7,2,7,12],[15,2,15,12],[15,0,15,1],[17,0,17,1],[17,2,17,12],[21,2,21,12],[24,2,24,12],[21,0,21,1],[23,0,23,1],[0,0,0,3],[0,5,0,12],[9,0,9,1],[1,0,1,12],[19,2,19,12],[13,2,13,12],[19,0,19,1],[5,2,5,12],[7,0,7,1],[13,0,13,1],[9,2,9,12],[11,2,11,12],[2,5,2,12],[3,0,3,11],[79,0,79,12],[52,0,52,1],[76,2,76,11],[57,0,57,1],[55,0,55,12],[65,2,65,11],[67,2,67,11],[69,2,69,11],[63,2,63,11],[57,2,57,11],[61,2,61,11],[52,2,53,12],[59,2,59,11],[72,2,72,11],[74,2,74,11],[46,2,46,12],[50,2,50,12],[39,2,40,12],[71,2,71,11],[44,0,44,12],[46,0,46,1],[48,2,48,12],[48,0,48,1],[50,0,50,1],[41,2,41,12],[39,0,39,1],[37,0,37,12],[32,2,32,12],[35,2,35,12],[35,0,35,1],[33,2,33,12],[32,0,32,1],[33,0,33,1]]}
[null,null,null,null,null,"Travel Expense Statement - Instructions\n"]
["This form should be completed by any agency that is not using the Concur Travel and Expense Management System.  Use the Per Diem Calculator Tool (included with this form) to determine the total meal allowance due to the traveler (if applicable).\n"]
[]
["Section 1: Expense Submitter & Preparer Information"]
[]
["Agency & Traveler Name",null,"Enter the expense submitter's agency name and in the appropriate field enter the Traveler's name"]
[]
["Employee ID#",null,"Enter expense submitter's employee ID #"]
[]
["Home Address",null,"Enter the expense submitter's street address"]
[]
["City, State, Zip",null,"Enter the expense submitter's home city, state, and zip"]
[]
["Office Phone:",null,"Enter expense submitter's phone number"]
[]
["Email Address:",null,"Enter expense submitter's email address"]
[]
["Type of Travel:",null,"Select dropdown box for: In State, Out of State, or International Travel"]
[]
["Travel To Date:",null,"Enter first date of the trip"]
[]
["Travel From Date:",null,"Enter last date of trip"]
[]
["Departure & Return Time:",null,"Enter the time you left on the first day of your trip and the time you returned on the last day of your trip"]
["Section 2: Record of Expenses",null,"This section summarizes the Travel Expenses from page 2, the Mileage Expenses from page 3, and the M&IE Per diem amount calculated with the Per diem Calculator Tool on page 4."]
[]
["Date",null,"Write out the date in the MM/DD/YY format"]
[]
["Per Diem",null,"For the First and Last Day, check the box in the per diem field (Only 75% of Per Diem Eligible for Reimbursement on the First and Last Day "]
[null,null,"of an authorized trip.  Also, note that when a meal is provided the eligible reimbursable per diem is reduced by the amount allocated for that"]
[null,null,"particular meal at the 100% rate -- this is a State Policy)."]
[]
["Total Expenses",null,"The sum of the expenses in the Amount column will total here"]
["Travel Advance ",null,"If the expense submitter obtained a travel advance prior to the trip, enter the amount of the advance"]
[]
["Due TO/FROM the Expense Submitter",null,"If the expenses were greater than the total of the advances, the net amount owed TO the expense submitter will total here. If the advances were greater than the expense amount, the net amount due FROM the expense submitter will total here. If the expense submitter owes the State money, please attach a personal check to the expense report"]
[]
["Section 3: Certification and Attestation"]
[]
["Traveler Signature",null,"Enter the name of the traveler"]
[]
["Approver Signatures",null,"Note:  The individual/s below who approve the Travel and Expense Statement are certifying the following: \n           \n           *      Appropriateness of the expenditure and reasonableness of the amount            \n           *      Availability of funds            \n           *      Compliance with Statewide Travel Regulations          \n           *      Completeness of documentation and accuracy           "]
[]
[]
["Page 2  - Itemized Travel Expenses"]
[]
["Purpose of Trip/Event",null,"Clearly state the business purpose of the trip or event; include the conference name if applicable"]
[]
["Record of Travel Expenses",null,"Itemize all expenses by date and type. An original receipt is required for any item $25 or greater. Original receipts are also required for all lodging and airline expenses, regardless of amount."]
[]
["Common Carrier, Etc…",null,"Enter amount of any commercial transportation used during a trip (Receipts are required) Other expenses charged to this account include parking, taxes, and tolls"]
[]
["Miscellaneous Expenses",null,"Use this space to include expenses that do not apply to any of the above categories. List the date and provide a description of the expense.  Attach an additional sheet if necessary. "]
[]
[]
["Page 3 - Personal Vehicle Mileage"]
[]
["Traveler Name",null,"Enter the name of the employee: last name, first name, middle initial"]
[]
["Date",null,"Enter date of the traveler's departure"]
[]
["Origin",null,"Enter location where the trip began"]
[]
["Destination",null,"Enter final destination of business trip"]
[]
["Business Miles",null,"Enter total business miles for the travel"]
[]
["Commute Miles",null,"Enter total commute miles for the travel (Miles from home to work location)"]
[]
["Personal Miles",null,"Enter any personal miles that occurred during the travel"]
[]
["State Use Miles",null,"State use miles will automatically calculate (deducting any commute miles and personal miles)"]
["Mileage Rate",null,"Verify that correct mileage rate populated.   Total State use miles will automatically populate in Page 1 of the expense report."]
[]
["Motor Pool",null,"Mark the box if motor pool vehicle was used"]
[]
["Shared Transportation",null,"Enter names of individuals that rode with the traveler"]

{"sheet":"Page1 - Expense Report","index":1,"n_rows":47,"n_cols":21,"rows_kept":47,"cut":false,"hidden":false,"merged":[[1,0,1,12],[11,0,11,12],[2,9,2,10],[4,3,4,7],[5,3,5,7],[9,3,9,7],[7,3,7,7],[6,3,6,7],[8,3,8,7],[3,11,3,12],[8,11,8,12],[7,11,7,12],[4,11,4,12],[5,11,5,12],[9,11,9,12],[34,2,34,4],[6,11,6,12],[0,0,0,6],[18,4,18,5],[15,4,15,5],[16,4,16,5],[16,0,16,3],[17,0,17,3],[14,0,14,3],[16,6,16,7],[17,4,17,5],[15,0,15,3],[14,6,14,7],[15,6,15,7],[18,0,18,3],[0,7,0,12],[45,0,45,11],[35,0,35,11],[40,0,40,11],[42,0,42,11],[44,0,44,11],[43,0,43,11],[38,0,38,12],[37,0,37,12],[41,0,41,11],[39,0,39,11],[32,0,32,11],[33,0,33,11],[25,4,25,5],[31,0,31,11],[29,0,29,6],[25,0,25,3],[25,6,25,7],[13,8,13,12],[13,0,13,7],[21,0,21,3],[21,4,21,5],[14,4,14,5],[19,0,19,3],[20,0,20,3],[19,4,19,5],[20,4,20,5],[18,6,18,7],[19,6,19,7],[17,6,17,7],[21,6,21,7],[20,6,20,7],[22,0,22,3],[23,0,23,3],[24,0,24,3],[24,6,24,7],[22,4,22,5],[24,4,24,5],[22,6,22,7],[23,6,23,7],[23,4,23,5]]}
[null,null,null,null,null,null,null,"DOMESTIC"]
["Section 1: Expense Submitter and Personal Information"]
[]
["Agency:",null,null,"Savannah State University",null,null,null,null,null,"Type of Travel",null,null,null,null,null,null,null,null,null,null,"In State"]
["Traveler's Name:",null,null,null,null,null,null,null,null,"From Date: MM/DD/YY",null,null,null,null,null,null,null,null,null,null,"Out of State"]
["Employee ID #:",null,null,null,null,null,null,null,null,"To Date: MM/DD/YY",null,null,null,null,null,null,null,null,null,null,"International"]
["Home Address:",null,null,null,null,null,null,null,null,"Departure Time:"]
["City, State, Zip:",null,null,null,null,null,null,null,null,"Return Time:"]
["Office Phone:",null,null,null,null,null,null,null,null,"Travel Destination:",null,"City,State"]
["Email Address:",null,null,null,null,null,null,null,null,"If Other, Specify"]
[]
["Section 2: Record of Expenses"]
["Daily Per Diem:",{"$f":"VLOOKUP(L9,Table1[#All],6,FALSE)","v":"SSU Meals"},null,null,"In-State: $50.00, High Cost Areas $50.00 (Cobb, DeKalb, Fulton, Glynn, and Richmond Counties);                                                                   For Out-of-State Per Diems, refer to www.gsa.gov, and deduct Incidentals ($5.00/Day)"]
[" þ First & Last Day, Please Check Box in Per Diem Column",null,null,null,null,null,null,null,"þ For Provided Meals, Please Check Box"]
["Date: (Ex: 10/01/2012)",null,null,null,"Per Diem ",null,"Location",null,"Breakfast","Lunch","Dinner","Lodging","Amount",null,"Per Diem","Is Blank A17","B","L","D"]
[{"$f":"IF(ISBLANK(L5),\"\",SUM(L5))","v":""},null,null,null,{"$f":"IF(COUNTBLANK(A16),\"\",IF(O16=TRUE,$B$13*0.75,$B$13))","v":""},null,{"$f":"IF(COUNTBLANK(A16)=1,\"\",IF(ISBLANK($B$13),\"\",IF($B$13=0,\"\",$L$9)))","v":""},null,{"$f":"IF($E$16=\"\",\"\",IF(Q16=TRUE,SUM(VLOOKUP($E$16,'per diem tables'!$A$2:$D$27,2,FALSE)*-1),\"\"))","v":""},{"$f":"IF($E$16=\"\",\"\",IF(R16=TRUE,SUM(VLOOKUP($E$16,'per diem tables'!$A$2:$D$27,3,FALSE)*-1),\"\"))","v":""},{"$f":"IF($E$16=\"\",\"\",IF(S16=TRUE,SUM(VLOOKUP($E$16,'per diem tables'!$A$2:$D$27,4,FALSE)*-1),\"\"))","v":""},null,{"$f":"IF(COUNTBLANK(E16),\"\",E16+SUM(I16:K16)+L16)","v":""},null,false,{"$f":"ISBLANK(A16)","v":false},false,false,false]
[{"$f":"IF(A16<$L$6,A16+1,\"\")","v":""},null,null,null,{"$f":"IF(COUNTBLANK(A17),\"\",IF(O17=TRUE,$B$13*0.75,$B$13))","v":""},null,"",null,{"$f":"IF($E$16=\"\",\"\",IF(Q17=TRUE,SUM(VLOOKUP($E$17,'per diem tables'!$A$2:$D$27,2,FALSE)*-1),\"\"))","v":""},{"$f":"IF($E$16=\"\",\"\",IF(R17=TRUE,SUM(VLOOKUP($E$17,'per diem tables'!$A$2:$D$27,3,FALSE)*-1),\"\"))","v":""},{"$f":"IF($E$16=\"\",\"\",IF(S17=TRUE,SUM(VLOOKUP($E$17,'per diem tables'!$A$2:$D$27,4,FALSE)*-1),\"\"))","v":""},null,{"$f":"IF(COUNTBLANK(E17),\"\",E17+SUM(I17:K17)+L17)","v":""},null,false,{"$f":"ISBLANK(A17)","v":false},false,false,false]
[{"$f":"IF(A17<$L$6,A17+1,\"\")","v":""},null,null,null,"",null,"",null,{"$f":"IF($E$16=\"\",\"\",IF(Q18=TRUE,SUM(VLOOKUP($E$18,'per diem tables'!$A$2:$D$27,2,FALSE)*-1),\"\"))","v":""},{"$f":"IF($E$16=\"\",\"\",IF(R18=TRUE,SUM(VLOOKUP($E$18,'per diem tables'!$A$2:$D$27,3,FALSE)*-1),\"\"))","v":""},{"$f":"IF($E$16=\"\",\"\",IF(S18=TRUE,SUM(VLOOKUP($E$18,'per diem tables'!$A$2:$D$27,4,FALSE)*-1),\"\"))","v":""},null,"",null,false,false,false,false,false]
["",null,null,null,"",null,"",null,{"$f":"IF($E$16=\"\",\"\",IF(Q19=TRUE,SUM(VLOOKUP($E$19,'per diem tables'!$A$2:$D$27,2,FALSE)*-1),\"\"))","v":""},{"$f":"IF($E$16=\"\",\"\",IF(R19=TRUE,SUM(VLOOKUP($E$19,'per diem tables'!$A$2:$D$27,3,FALSE)*-1),\"\"))","v":""},{"$f":"IF($E$16=\"\",\"\",IF(S19=TRUE,SUM(VLOOKUP($E$19,'per diem tables'!$A$2:$D$27,4,FALSE)*-1),\"\"))","v":""},null,"",null,false,false,false,false,false]
["",null,null,null,{"$f":"IF(COUNTBLANK(A20),\"\",IF(O20=TRUE,$B$13*0.75,$B$13))","v":""},null,"",null,{"$f":"IF($E$16=\"\",\"\",IF(Q20=TRUE,SUM(VLOOKUP($E$20,'per diem tables'!$A$2:$D$27,2,FALSE)*-1),\"\"))","v":""},{"$f":"IF($E$16=\"\",\"\",IF(R20=TRUE,SUM(VLOOKUP($E$20,'per diem tables'!$A$2:$D$27,3,FALSE)*-1),\"\"))","v":""},{"$f":"IF($E$16=\"\",\"\",IF(S20=TRUE,SUM(VLOOKUP($E$20,'per diem tables'!$A$2:$D$27,4,FALSE)*-1),\"\"))","v":""},null,"",null,false,false,false,false,false]
["",null,null,null,"",null,"",null,{"$f":"IF($E$16=\"\",\"\",IF(Q21=TRUE,SUM(VLOOKUP($E$21,'per diem tables'!$A$2:$D$27,2,FALSE)*-1),\"\"))","v":""},{"$f":"IF($E$16=\"\",\"\",IF(R21=TRUE,SUM(VLOOKUP($E$21,'per diem tables'!$A$2:$D$27,3,FALSE)*-1),\"\"))","v":""},{"$f":"IF($E$16=\"\",\"\",IF(S21=TRUE,SUM(VLOOKUP($E$21,'per diem tables'!$A$2:$D$27,4,FALSE)*-1),\"\"))","v":""},null,"",null,false,false,false,false,false]
["",null,null,null,"",null,"",null,{"$f":"IF($E$16=\"\",\"\",IF(Q22=TRUE,SUM(VLOOKUP($E$22,'per diem tables'!$A$2:$D$27,2,FALSE)*-1),\"\"))","v":""},{"$f":"IF($E$16=\"\",\"\",IF(R22=TRUE,SUM(VLOOKUP($E$22,'per diem tables'!$A$2:$D$27,3,FALSE)*-1),\"\"))","v":""},{"$f":"IF($E$16=\"\",\"\",IF(S22=TRUE,SUM(VLOOKUP($E$22,'per diem tables'!$A$2:$D$27,4,FALSE)*-1),\"\"))","v":""},null,"",null,false,false,false,false,false]
["",null,null,null,"",null,"",null,{"$f":"IF($E$16=\"\",\"\",IF(Q23=TRUE,SUM(VLOOKUP($E$23,'per diem tables'!$A$2:$D$27,2,FALSE)*-1),\"\"))","v":""},{"$f":"IF($E$16=\"\",\"\",IF(R23=TRUE,SUM(VLOOKUP($E$23,'per diem tables'!$A$2:$D$27,3,FALSE)*-1),\"\"))","v":""},{"$f":"IF($E$16=\"\",\"\",IF(S23=TRUE,SUM(VLOOKUP($E$23,'per diem tables'!$A$2:$D$27,4,FALSE)*-1),\"\"))","v":""},null,"",null,false,false,false,false,false]
["",null,null,null,"",null,"",null,{"$f":"IF($E$16=\"\",\"\",IF(Q24=TRUE,SUM(VLOOKUP($E$24,'per diem tables'!$A$2:$D$27,2,FALSE)*-1),\"\"))","v":""},{"$f":"IF($E$16=\"\",\"\",IF(R24=TRUE,SUM(VLOOKUP($E$24,'per diem tables'!$A$2:$D$27,3,FALSE)*-1),\"\"))","v":""},{"$f":"IF($E$16=\"\",\"\",IF(S24=TRUE,SUM(VLOOKUP($E$24,'per diem tables'!$A$2:$D$27,4,FALSE)*-1),\"\"))","v":""},null,"",null,false,false,false,false,false]
["",null,null,null,"",null,"",null,{"$f":"IF($E$16=\"\",\"\",IF(Q25=TRUE,SUM(VLOOKUP($E$25,'per diem tables'!$A$2:$D$27,2,FALSE)*-1),\"\"))","v":""},{"$f":"IF($E$16=\"\",\"\",IF(R25=TRUE,SUM(VLOOKUP($E$25,'per diem tables'!$A$2:$D$27,3,FALSE)*-1),\"\"))","v":""},{"$f":"IF($E$16=\"\",\"\",IF(S25=TRUE,SUM(VLOOKUP($E$25,'per diem tables'!$A$2:$D$27,4,FALSE)*-1),\"\"))","v":""},null,"",null,false,false,false,false,false]
["",null,null,null,"",null,"",null,{"$f":"IF($E$16=\"\",\"\",IF(Q26=TRUE,SUM(VLOOKUP($E$26,'per diem tables'!$A$2:$D$27,2,FALSE)*-1),\"\"))","v":""},{"$f":"IF($E$16=\"\",\"\",IF(R26=TRUE,SUM(VLOOKUP($E$26,'per diem tables'!$A$2:$D$27,3,FALSE)*-1),\"\"))","v":""},{"$f":"IF($E$16=\"\",\"\",IF(S26=TRUE,SUM(VLOOKUP($E$26,'per diem tables'!$A$2:$D$27,4,FALSE)*-1),\"\"))","v":""},null,"",null,false,false,false,false,false]
["Explain Any Unusual Amounts for Subsistence:",null,null,null,null,null,null,"Amount by Column",{"$f":"SUM(I16:I26)","v":0},{"$f":"SUM(J16:J26)","v":0},0,0]
[null,null,null,null,null,null,null,null,null,null,null,"TOTAL",{"$f":"SUM(M16:M27)","v":0}]
[]
["State Use Miles:      Tier 1                                Tier 2",null,null,null,null,null,null,"Rate",{"$f":"IF(O30=TRUE,0.67,IF(P30=TRUE,0.21,\"\"))","v":""},"Total Miles",{"$f":"'Page 2 - Travel Expenses'!I23","v":0},null,{"$f":"IF(COUNTBLANK(I30),\"\",I30*K30)","v":""},null,false,false]
["If personal vehicle is used after Car Cost Comparison determines Rental Vehicle is cheaper, Tier 2 rate will be reimbursed"]
["Common Carrier / Limousine / Taxi / Uber / etc. (Explain in Section on Page 2)",null,null,null,null,null,null,null,null,null,null,null,{"$f":"'Page 2 - Travel Expenses'!I40","v":0}]
["Miscellaneous Expenses (Explain in Section on Page 2)",null,null,null,null,null,null,null,null,null,null,null,{"$f":"'Page 2 - Travel Expenses'!I47","v":0}]
["TOTAL TRAVEL EXPENSE",null,null,null,null,null,null,null,null,null,null,null,{"$f":"SUM(M28:M33)","v":0}]
["Only if Applicable:  ",null,null,null,null,"← Enter Cash Advance Voucher #",null,null,null,null,null,"Enter Advance Amount →"]
["Due TO/FROM Expense Submitter:",null,null,null,null,null,null,null,null,null,null,null,{"$f":"M34-M35","v":0}]
[]
["Section 3: Certification and Attestation"]
["I do solemnly swear, under criminal penalty of a felony for false statements subject to punishment by fine of not more than $1,000 or by imprisonment of not less than one nor more than five years, that the above statements are true and I have incurred the described expenses and the state use mileage in the discharge of my official duties of the state.\""]
[]
["Traveler Signature:",null,null,null,null,null,null,null,null,null,null,null,"Date"]
[]
["Supervisor Signature",null,null,null,null,null,null,null,null,null,null,null,"Date"]
[]
["Budget Unit Head Signature:",null,null,null,null,null,null,null,null,null,null,null,"Date"]
[]
["Title III Signature (if applicable):",null,null,null,null,null,null,null,null,null,null,null,"Date"]

{"sheet":"Page 2 - Travel Expenses","index":2,"n_rows":49,"n_cols":22,"rows_kept":49,"cut":false,"hidden":false,"merged":[[0,0,0,1],[0,2,0,3],[1,0,1,3],[3,1,3,2],[6,6,7,6],[6,0,7,0],[6,1,7,1],[6,2,7,2],[3,3,3,4],[5,2,5,4],[46,0,46,7],[28,0,28,8],[29,0,29,8],[33,1,33,7],[31,1,32,7],[39,0,39,7],[41,1,41,7],[37,1,37,7],[38,1,38,7],[40,1,40,7],[36,1,36,7],[31,8,32,8],[30,0,30,8],[25,0,25,1],[44,1,44,7],[45,1,45,7],[31,0,32,0],[6,7,7,7],[27,0,27,8],[42,1,42,7],[43,1,43,7],[35,1,35,7],[34,1,34,7],[6,3,6,4],[6,8,7,8]]}
[null,null,null,null,null,"Itemized Travel Expenses"]
[]
[]
["Traveler Name:",{"$f":"'Page1 - Expense Report'!D5","v":0},null,"GA License Plate Number:",null,null,null,null,null,null,null,null,null,null,null,null,null,null,null,"YES",null,"Automobile"]
[]
[null,null,"Select type of personal vehicle:",null,null,"Automobile"]
["Date","Origin","Destination","Odometer Readings (Optional)",null,null,"Commute Miles","Personal Miles","State Use Miles"]
[null,null,null,"Starting ","Ending","Total Miles"]
[null,null,null,null,null,{"$f":"E9-D9","v":0},null,null,{"$f":"+F9-G9-H9","v":0}]
[null,null,null,null,null,0,null,null,{"$f":"+F10-G10-H10","v":0}]
[null,null,null,null,null,0,null,null,0]
[null,null,null,null,null,0,null,null,0]
[null,null,null,null,null,0,null,null,0]
[null,null,null,null,null,0,null,null,0]
[null,null,null,null,null,0,null,null,0]
[null,null,null,null,null,0,null,null,0]
[null,null,null,null,null,0,null,null,0]
[null,null,null,null,null,0,null,null,0]
[null,null,null,null,null,0,null,null,0]
[null,null,null,null,null,0,null,null,0]
[null,null,null,null,null,0,null,null,0]
[null,null,null,null,null,0,null,null,0]
["Indicate use of motor pool vehicle or shared transportation:",null,null,null,null,null,"Total State Use Miles",null,{"$f":"SUM(I9:I22)","v":0}]
[]
["        Motor Pool Vehicle was used for travel"]
["Person(s) traveled with: "]
[]
["Purpose of the Trip:"]
[]
[]
["All reimbursable expenses must be listed and appropriate original receipts attached. "]
["Date","Commercial Transportation (Including Parking, Taxi, Tolls)",null,null,null,null,null,null,"Amount"]
[]
[]
[]
[]
[]
[]
[]
["TOTAL COMMON CARRIER, ETC…",null,null,null,null,null,null,null,{"$f":"SUM(I34:I39)","v":0}]
["Date","Miscellaneous Expenses",null,null,null,null,null,null,"Amount"]
[]
[]
[]
[]
[]
["TOTAL MISCELLANEOUS",null,null,null,null,null,null,null,{"$f":"SUM(I42:I46)","v":0}]
["Note:  Please be sure to attach all necessary receipts, indicate travel start time on the departure date and the travel return time on the return date, and to"]
["attach program agendas (conference schedule), if applicable."]

{"sheet":"per diem tables","index":3,"n_rows":26,"n_cols":6,"rows_kept":26,"cut":false,"hidden":true,"merged":[]}
["Domestic"]
["M&IE Total","Breakfast","Lunch","Dinner","Incidentals","Column1"]
[{"$f":"SUM(Table2[[#This Row],[Breakfast]:[Dinner]])","v":50},13,14,23,0]
[{"$f":"A3*0.75","v":37.5},{"$f":"B3*0.75","v":9.75},10.5,17.25,0]
[{"$f":"SUM(Table2[[#This Row],[Breakfast]:[Dinner]])","v":54},13,15,26,0]
[{"$f":"A5*0.75","v":40.5},{"$f":"B5*0.75","v":9.75},{"$f":"C5*0.75","v":11.25},19.5,0]
[{"$f":"SUM(Table2[[#This Row],[Breakfast]:[Dinner]])","v":59},14,16,29,0]
[{"$f":"A7*0.75","v":44.25},{"$f":"B7*0.75","v":10.5},{"$f":"C7*0.75","v":12},{"$f":"D7*0.75","v":21.75},0]
[{"$f":"SUM(Table2[[#This Row],[Breakfast]:[Dinner]])","v":63},16,19,28,0]
[{"$f":"A9*0.75","v":47.25},{"$f":"B9*0.75","v":12},{"$f":"C9*0.75","v":14.25},{"$f":"D9*0.75","v":21},0]
[{"$f":"SUM(Table2[[#This Row],[Breakfast]:[Dinner]])","v":64},16,17,31,0]
[{"$f":"A11*0.75","v":48},{"$f":"B11*0.75","v":12},{"$f":"C11*0.75","v":12.75},{"$f":"D11*0.75","v":23.25},0]
[{"$f":"SUM(Table2[[#This Row],[Breakfast]:[Dinner]])","v":69},17,18,34,0]
[{"$f":"A13*0.75","v":51.75},{"$f":"B13*0.75","v":12.75},{"$f":"C13*0.75","v":13.5},{"$f":"D13*0.75","v":25.5},0]
[{"$f":"SUM(Table2[[#This Row],[Breakfast]:[Dinner]])","v":74},18,20,36,0]
[{"$f":"A15*0.75","v":55.5},{"$f":"B15*0.75","v":13.5},{"$f":"C15*0.75","v":15},{"$f":"D15*0.75","v":27},0]
[{"$f":"SUM(Table2[[#This Row],[Breakfast]:[Dinner]])","v":75},20,22,33,0]
[{"$f":"A17*0.75","v":56.25},{"$f":"B17*0.75","v":15},{"$f":"C17*0.75","v":16.5},{"$f":"D17*0.75","v":24.75},{"$f":"E17*0.75","v":0}]
[{"$f":"SUM(Table2[[#This Row],[Breakfast]:[Dinner]])","v":79},19,22,38,0]
[{"$f":"A19*0.75","v":59.25},{"$f":"B19*0.75","v":14.25},{"$f":"C19*0.75","v":16.5},{"$f":"D19*0.75","v":28.5},0]
[{"$f":"SUM(Table2[[#This Row],[Breakfast]:[Dinner]])","v":81},22,23,36,0]
[{"$f":"A21*0.75","v":60.75},{"$f":"B21*0.75","v":16.5},{"$f":"C21*0.75","v":17.25},{"$f":"D21*0.75","v":27},{"$f":"E21*0.75","v":0}]
[{"$f":"SUM(Table2[[#This Row],[Breakfast]:[Dinner]])","v":84},20,24,40,0]
[{"$f":"A23*0.75","v":63},{"$f":"B23*0.75","v":15},{"$f":"C23*0.75","v":18},{"$f":"D23*0.75","v":30},{"$f":"E23*0.75","v":0}]
[{"$f":"SUM(Table2[[#This Row],[Breakfast]:[Dinner]])","v":87},23,26,38,0]
[{"$f":"A25*0.75","v":65.25},{"$f":"B25*0.75","v":17.25},{"$f":"C25*0.75","v":19.5},{"$f":"D25*0.75","v":28.5}]

{"sheet":"Cities","index":4,"n_rows":651,"n_cols":6,"rows_kept":651,"cut":false,"hidden":true,"merged":[]}
["FY2025 Per Diem Rates - Effective Oct 1, 2024",null,null,null,null,"Less Incidentals"]
["City,State","DESTINATION CITY","DESTINATION STATE","COUNTY","FY25 Meals","SSU Meals"]
[{"$f":"CONCATENATE(C3,\", \",B3)","v":"AL, Birmingham"},"Birmingham","AL","Jefferson",80,{"$f":"E3-5","v":75}]
["AL, Gulf Shores","Gulf Shores","AL","Baldwin",74,69]
["AL, Gulf Shores","Gulf Shores","AL","Baldwin",74,69]
[{"$f":"CONCATENATE(C6,\", \",B6)","v":"AL, Gulf Shores"},"Gulf Shores","AL","Baldwin",74,{"$f":"E6-5","v":69}]
["AL, Gulf Shores","Gulf Shores","AL","Baldwin",74,69]
[{"$f":"CONCATENATE(C8,\", \",B8)","v":"AL, Huntsville"},"Huntsville","AL","Madison",74,{"$f":"E8-5","v":69}]
["AL, Huntsville","Huntsville","AL","Madison",74,69]
[{"$f":"CONCATENATE(C10,\", \",B10)","v":"AL, Huntsville"},"Huntsville","AL","Madison",74,{"$f":"E10-5","v":69}]
["AL, Mobile","Mobile","AL","Mobile",74,69]
["AR, Hot Springs","Hot Springs","AR","Garland",68,63]
["AZ, Grand Canyon / Flagstaff","Grand Canyon / Flagstaff","AZ","Coconino / Yavapai less the city of Sedona",80,75]
[{"$f":"CONCATENATE(C14,\", \",B14)","v":"AZ, Grand Canyon / Flagstaff"},"Grand Canyon / Flagstaff","AZ","Coconino / Yavapai less the city of Sedona",80,{"$f":"E14-5","v":75}]
["AZ, Grand Canyon / Flagstaff","Grand Canyon / Flagstaff","AZ","Coconino / Yavapai less the city of Sedona",80,75]
["AZ, Kayenta","Kayenta","AZ","Navajo",74,69]
["AZ, Phoenix / Scottsdale","Phoenix / Scottsdale","AZ","Maricopa",86,81]
["AZ, Phoenix / Scottsdale","Phoenix / Scottsdale","AZ","Maricopa",86,81]
["AZ, Phoenix / Scottsdale","Phoenix / Scottsdale","AZ","Maricopa",86,81]
["AZ, Phoenix / Scottsdale","Phoenix / Scottsdale","AZ","Maricopa",86,81]
["AZ, Phoenix / Scottsdale","Phoenix / Scottsdale","AZ","Maricopa",86,81]
["AZ, Sedona","Sedona","AZ","City Limits of Sedona",92,87]
["AZ, Sedona","Sedona","AZ","City Limits of Sedona",92,87]
["AZ, Sedona","Sedona","AZ","City Limits of Sedona",92,87]
["AZ, Sedona","Sedona","AZ","City Limits of Sedona",92,87]
["AZ, Sedona","Sedona","AZ","City Limits of Sedona",92,87]
["AZ, Tucson","Tucson","AZ","Pima",80,75]
["AZ, Tucson","Tucson","AZ","Pima",80,75]
["AZ, Tucson","Tucson","AZ","Pima",80,75]
["CA, Antioch / Brentwood / Concord","Antioch / Brentwood / Concord","CA","Contra Costa",86,81]
["CA, Bakersfield / Ridgecrest","Bakersfield / Ridgecrest","CA","Kern",74,69]
[{"$f":"CONCATENATE(C32,\", \",B32)","v":"CA, Barstow / Ontario / Victorville"},"Barstow / Ontario / Victorville","CA","San Bernardino",86,{"$f":"E32-5","v":81}]
[{"$f":"CONCATENATE(C33,\", \",B33)","v":"CA, Death Valley"},"Death Valley","CA","Inyo / NAWS China Lake",80,{"$f":"E33-5","v":75}]
["CA, Eureka / Arcata / McKinleyville","Eureka / Arcata / McKinleyville","CA","Humboldt",86,81]
["CA, Eureka / Arcata / McKinleyville","Eureka / Arcata / McKinleyville","CA","Humboldt",86,81]
["CA, Eureka / Arcata / McKinleyville","Eureka / Arcata / McKinleyville","CA","Humboldt",86,81]
["CA, Fresno","Fresno","CA","Fresno",86,81]
["CA, Los Angeles","Los Angeles","CA","Los Angeles / Orange / Ventura / Edwards AFB less the city of Santa Monica",86,81]
["CA, Mammoth Lakes","Mammoth Lakes","CA","Mono",86,81]
["CA, Mammoth Lakes","Mammoth Lakes","CA","Mono",86,81]
["CA, Mammoth Lakes","Mammoth Lakes","CA","Mono",86,81]
["CA, Mill Valley / San Rafael / Novato","Mill Valley / San Rafael / Novato","CA","Marin",92,87]
["CA, Mill Valley / San Rafael / Novato","Mill Valley / San Rafael / Novato","CA","Marin",92,87]
["CA, Monterey","Monterey","CA","Monterey",92,87]
["CA, Monterey","Monterey","CA","Monterey",92,87]
["CA, Monterey","Monterey","CA","Monterey",92,87]
[{"$f":"CONCATENATE(C47,\", \",B47)","v":"CA, Monterey"},"Monterey","CA","Monterey",92,{"$f":"E47-5","v":87}]
["CA, Napa","Napa","CA","Napa",92,87]
["CA, Napa","Napa","CA","Napa",92,87]
["CA, Napa","Napa","CA","Napa",92,87]
["CA, Oakhurst","Oakhurst","CA","Madera ",80,75]
["CA, Oakland","Oakland","CA","Alameda",92,87]
["CA, Palm Springs","Palm Springs","CA","Riverside",86,81]
["CA, Palm Springs","Palm Springs","CA","Riverside",86,81]
["CA, Point Arena / Gualala","Point Arena / Gualala","CA","Mendocino",86,81]
["CA, Sacramento","Sacramento","CA","Sacramento",86,81]
["CA, San Diego","San Diego","CA","San Diego",86,81]
["CA, San Diego","San Diego","CA","San Diego",86,81]
[{"$f":"CONCATENATE(C59,\", \",B59)","v":"CA, San Diego"},"San Diego","CA","San Diego",86,36]
["CA, San Francisco","San Francisco","CA","San Francisco",92,{"$f":"E60-5","v":87}]
["CA, San Francisco","San Francisco","CA","San Francisco",92,87]
["CA, San Francisco","San Francisco","CA","San Francisco",92,87]
[{"$f":"CONCATENATE(C63,\", \",B63)","v":"CA, San Luis Obispo"},"San Luis Obispo","CA","San Luis Obispo",86,{"$f":"E63-5","v":81}]
["CA, San Luis Obispo","San Luis Obispo","CA","San Luis Obispo",86,81]
["CA, San Luis Obispo","San Luis Obispo","CA","San Luis Obispo",86,81]
["CA, San Mateo / Foster City / Belmont","San Mateo / Foster City / Belmont","CA","San Mateo",86,81]
["CA, Santa Barbara","Santa Barbara","CA","Santa Barbara",92,87]
["CA, Santa Barbara","Santa Barbara","CA","Santa Barbara",92,87]
[{"$f":"CONCATENATE(C69,\", \",B69)","v":"CA, Santa Barbara"},"Santa Barbara","CA","Santa Barbara",92,{"$f":"E69-5","v":87}]
["CA, Santa Cruz","Santa Cruz","CA","Santa Cruz",86,81]
["CA, Santa Cruz","Santa Cruz","CA","Santa Cruz",86,81]
["CA, Santa Cruz","Santa Cruz","CA","Santa Cruz",86,81]
[{"$f":"CONCATENATE(C73,\", \",B73)","v":"CA, Santa Monica "},"Santa Monica ","CA","City limits of Santa Monica",92,{"$f":"E73-5","v":87}]
["CA, Santa Rosa","Santa Rosa","CA","Sonoma",86,81]
["CA, South Lake Tahoe","South Lake Tahoe","CA","El Dorado",86,81]
["CA, South Lake Tahoe","South Lake Tahoe","CA","El Dorado",86,81]
["CA, South Lake Tahoe","South Lake Tahoe","CA","El Dorado",86,81]
["CA, South Lake Tahoe","South Lake Tahoe","CA","El Dorado",86,81]
["CA, South Lake Tahoe","South Lake Tahoe","CA","El Dorado",86,81]
["CA, Stockton ","Stockton ","CA","San Joaquin",74,69]
["CA, Sunnyvale / Palo Alto / San Jose","Sunnyvale / Palo Alto / San Jose","CA","Santa Clara",92,87]
["CA, Tahoe City","Tahoe City","CA","Placer",86,81]
[{"$f":"CONCATENATE(C83,\", \",B83)","v":"CA, Truckee"},"Truckee","CA","Nevada ",86,{"$f":"E83-5","v":81}]
["CA, Truckee","Truckee","CA","Nevada ",86,81]
["CA, Truckee","Truckee","CA","Nevada ",86,81]
["CA, Truckee","Truckee","CA","Nevada ",86,81]
["CA, Truckee","Truckee","CA","Nevada ",86,81]
["CA, Visalia","Visalia","CA","Tulare",80,75]
["CA, West Sacramento / Davis","West Sacramento / Davis","CA","Yolo",80,75]
["CA, Yosemite National Park","Yosemite National Park","CA","Mariposa",86,81]
["CA, Yosemite National Park","Yosemite National Park","CA","Mariposa",86,81]
["CA, Yosemite National Park","Yosemite National Park","CA","Mariposa",86,81]
["CO, Aspen","Aspen","CO","Pitkin",92,87]
["CO, Aspen","Aspen","CO","Pitkin",92,87]
["CO, Aspen","Aspen","CO","Pitkin",92,87]
[{"$f":"CONCATENATE(C96,\", \",B96)","v":"CO, Boulder / Broomfield"},"Boulder / Broomfield","CO","Boulder / Broomfield",80,{"$f":"E96-5","v":75}]
["CO, Boulder / Broomfield","Boulder / Broomfield","CO","Boulder / Broomfield",80,{"$f":"E97","v":80}]
["CO, Boulder / Broomfield","Boulder / Broomfield","CO","Boulder / Broomfield",80,{"$f":"E98","v":80}]
["CO, Colorado Springs","Colorado Springs","CO","El Paso",86,86]
[{"$f":"CONCATENATE(C100,\", \",B100)","v":"CO, Colorado Springs"},"Colorado Springs","CO","El Paso",86,86]
["CO, Colorado Springs","Colorado Springs","CO","El Paso",86,86]
[{"$f":"CONCATENATE(C102,\", \",B102)","v":"CO, Cortez"},"Cortez","CO","Montezuma",74,74]
["CO, Cortez","Cortez","CO","Montezuma",74,74]
["CO, Cortez","Cortez","CO","Montezuma",74,{"$f":"E104","v":74}]
["CO, Crested Butte / Gunnison","Crested Butte / Gunnison","CO","Gunnison",86,86]
[{"$f":"CONCATENATE(C106,\", \",B106)","v":"CO, Denver / Aurora"},"Denver / Aurora","CO","Denver / Adams / Arapahoe / Jefferson",92,{"$f":"E106-5","v":87}]
["CO, Denver / Aurora","Denver / Aurora","CO","Denver / Adams / Arapahoe / Jefferson",92,87]
["CO, Denver / Aurora","Denver / Aurora","CO","Denver / Adams / Arapahoe / Jefferson",92,87]
[{"$f":"CONCATENATE(C109,\", \",B109)","v":"CO, Douglas "},"Douglas ","CO","Douglas",80,{"$f":"E109-5","v":75}]
[{"$f":"CONCATENATE(C110,\", \",B110)","v":"CO, Douglas "},"Douglas ","CO","Douglas",80,{"$f":"E110-5","v":75}]
["CO, Douglas ","Douglas ","CO","Douglas",80,75]
["CO, Durango","Durango","CO","La Plata",80,75]
["CO, Durango","Durango","CO","La Plata",80,75]
["CO, Fort Collins / Loveland","Fort Collins / Loveland","CO","Larimer",80,75]
[{"$f":"CONCATENATE(C115,\", \",B115)","v":"CO, Fort Collins / Loveland"},"Fort Collins / Loveland","CO","Larimer",80,{"$f":"E115-5","v":75}]
["CO, Fort Collins / Loveland","Fort Collins / Loveland","CO","Larimer",80,75]
["CO, Grand Lake","Grand Lake","CO","Grand",86,81]
["CO, Grand Lake","Grand Lake","CO","Grand",86,81]
["CO, Grand Lake","Grand Lake","CO","Grand",86,81]
[{"$f":"CONCATENATE(C120,\", \",B120)","v":"CO, Grand Lake"},"Grand Lake","CO","Grand",86,{"$f":"E120-5","v":81}]
[{"$f":"CONCATENATE(C121,\", \",B121)","v":"CO, Montrose"},"Montrose","CO","Montrose",74,{"$f":"E121-5","v":69}]
["CO, Montrose","Montrose","CO","Montrose",74,69]
["CO, Montrose","Montrose","CO","Montrose",74,69]
[{"$f":"CONCATENATE(C124,\", \",B124)","v":"CO, Silverthorne / Breckenridge"},"Silverthorne / Breckenridge","CO","Summit",92,{"$f":"E124-5","v":87}]
["CO, Silverthorne / Breckenridge","Silverthorne / Breckenridge","CO","Summit",92,87]
["CO, Silverthorne / Breckenridge","Silverthorne / Breckenridge","CO","Summit",92,87]
["CO, Steamboat Springs","Steamboat Springs","CO","Routt",92,87]
["CO, Steamboat Springs","Steamboat Springs","CO","Routt",92,87]
[{"$f":"CONCATENATE(C129,\", \",B129)","v":"CO, Steamboat Springs"},"Steamboat Springs","CO","Routt",92,{"$f":"E129-5","v":87}]
["CO, Steamboat Springs","Steamboat Springs","CO","Routt",92,87]
["CO, Telluride","Telluride","CO","San Miguel",92,87]
["CO, Telluride","Telluride","CO","San Miguel",92,87]
[{"$f":"CONCATENATE(C133,\", \",B133)","v":"CO, Telluride"},"Telluride","CO","San Miguel",92,{"$f":"E133-5","v":87}]
["CO, Vail","Vail","CO","Eagle",92,87]
["CO, Vail","Vail","CO","Eagle",92,87]
["CO, Vail","Vail","CO","Eagle",92,87]
["CT, Bridgeport / Danbury","Bridgeport / Danbury","CT","Fairfield",86,81]
["CT, Hartford","Hartford","CT","Hartford",80,75]
["CT, New Haven","New Haven","CT","New Haven",80,75]
["CT, New London / Groton","New London / Groton","CT","New London",86,81]
["DC, District of Columbia","District of Columbia","DC","Washington DC (also the cities of Alexandria, Falls Church and Fairfax, and the counties of Arlington and Fairfax, in Virginia; and the counties of Montgomery and Prince George's in Maryland)",92,87]
["DC, District of Columbia","District of Columbia","DC","Washington DC (also the cities of Alexandria, Falls Church and Fairfax, and the counties of Arlington and Fairfax, in Virginia; and the counties of Montgomery and Prince George's in Maryland)",92,87]
["DC, District of Columbia","District of Columbia","DC","Washington DC (also the cities of Alexandria, Falls Church and Fairfax, and the counties of Arlington and Fairfax, in Virginia; and the counties of Montgomery and Prince George's in Maryland)",92,87]
["DC, District of Columbia","District of Columbia","DC","Washington DC (also the cities of Alexandria, Falls Church and Fairfax, and the counties of Arlington and Fairfax, in Virginia; and the counties of Montgomery and Prince George's in Maryland)",92,87]
["DC, District of Columbia","District of Columbia","DC","Washington DC (also the cities of Alexandria, Falls Church and Fairfax, and the counties of Arlington and Fairfax, in Virginia; and the counties of Montgomery and Prince George's in Maryland)",92,87]
["DE, Lewes","Lewes","DE","Sussex",74,69]
[{"$f":"CONCATENATE(C147,\", \",B147)","v":"DE, Lewes"},"Lewes","DE","Sussex",74,{"$f":"E147-5","v":69}]
["DE, Lewes","Lewes","DE","Sussex",74,69]
["DE, Wilmington","Wilmington","DE","New Castle",74,69]
["FL, Boca Raton / Delray Beach / Jupiter","Boca Raton / Delray Beach / Jupiter","FL","Palm Beach / Hendry",86,81]
["FL, Boca Raton / Delray Beach / Jupiter","Boca Raton / Delray Beach / Jupiter","FL","Palm Beach / Hendry",86,81]
["FL, Boca Raton / Delray Beach / Jupiter","Boca Raton / Delray Beach / Jupiter","FL","Palm Beach / Hendry",86,81]
["FL, Bradenton","Bradenton","FL","Manatee",80,75]
["FL, Bradenton","Bradenton","FL","Manatee",80,75]
["FL, Bradenton","Bradenton","FL","Manatee",80,75]
["FL, Cocoa Beach","Cocoa Beach","FL","Brevard",74,69]
[{"$f":"CONCATENATE(C157,\", \",B157)","v":"FL, Cocoa Beach"},"Cocoa Beach","FL","Brevard",74,{"$f":"E157-5","v":69}]
["FL, Cocoa Beach","Cocoa Beach","FL","Brevard",74,69]
[{"$f":"CONCATENATE(C159,\", \",B159)","v":"FL, Daytona Beach"},"Daytona Beach","FL","Volusia",80,{"$f":"E159-5","v":75}]
["FL, Daytona Beach","Daytona Beach","FL","Volusia",80,75]
[{"$f":"CONCATENATE(C161,\", \",B161)","v":"FL, Daytona Beach"},"Daytona Beach","FL","Volusia",80,{"$f":"E161-5","v":75}]
["FL, Daytona Beach","Daytona Beach","FL","Volusia",80,75]
["FL, Fort Lauderdale","Fort Lauderdale","FL","Broward",86,81]
["FL, Fort Lauderdale","Fort Lauderdale","FL","Broward",86,81]
["FL, Fort Lauderdale","Fort Lauderdale","FL","Broward",86,81]
["FL, Fort Myers","Fort Myers","FL","Lee",80,75]
["FL, Fort Myers","Fort Myers","FL","Lee",80,75]
["FL, Fort Myers","Fort Myers","FL","Lee",80,75]
["FL, Fort Walton Beach / De Funiak Springs","Fort Walton Beach / De Funiak Springs","FL","Okaloosa / Walton",86,81]
["FL, Fort Walton Beach / De Funiak Springs","Fort Walton Beach / De Funiak Springs","FL","Okaloosa / Walton",86,81]
["FL, Fort Walton Beach / De Funiak Springs","Fort Walton Beach / De Funiak Springs","FL","Okaloosa / Walton",86,81]
["FL, Fort Walton Beach / De Funiak Springs","Fort Walton Beach / De Funiak Springs","FL","Okaloosa / Walton",86,81]
["FL, Fort Walton Beach / De Funiak Springs","Fort Walton Beach / De Funiak Springs","FL","Okaloosa / Walton",86,81]
["FL, Gulf Breeze","Gulf Breeze","FL","Santa Rosa",74,69]
[{"$f":"CONCATENATE(C175,\", \",B175)","v":"FL, Gulf Breeze"},"Gulf Breeze","FL","Santa Rosa",74,{"$f":"E175-5","v":69}]
["FL, Gulf Breeze","Gulf Breeze","FL","Santa Rosa",74,69]
["FL, Gulf Breeze","Gulf Breeze","FL","Santa Rosa",74,69]
["FL, Key West","Key West","FL","Monroe",86,81]
["FL, Key West","Key West","FL","Monroe",86,81]
[{"$f":"CONCATENATE(C180,\", \",B180)","v":"FL, Key West"},"Key West","FL","Monroe",86,{"$f":"E180-5","v":81}]
["FL, Key West","Key West","FL","Monroe",86,81]
["FL, Miami","Miami","FL","Miami-Dade",92,87]
[{"$f":"CONCATENATE(C183,\", \",B183)","v":"FL, Miami"},"Miami","FL","Miami-Dade",92,{"$f":"E183-5","v":87}]
["FL, Miami","Miami","FL","Miami-Dade",92,87]
["FL, Miami","Miami","FL","Miami-Dade",92,87]
["FL, Miami","Miami","FL","Miami-Dade",92,87]
[{"$f":"CONCATENATE(C187,\", \",B187)","v":"FL, Naples"},"Naples","FL","Collier",80,{"$f":"E187-5","v":75}]
["FL, Naples","Naples","FL","Collier",80,75]
["FL, Naples","Naples","FL","Collier",80,75]
["FL, Naples","Naples","FL","Collier",80,75]
["FL, Orlando","Orlando","FL","Orange",80,75]
[{"$f":"CONCATENATE(C192,\", \",B192)","v":"FL, Orlando"},"Orlando","FL","Orange",80,{"$f":"E192-5","v":75}]
["FL, Orlando","Orlando","FL","Orange",80,75]
["FL, Panama City","Panama City","FL","Bay",80,75]
["FL, Panama City","Panama City","FL","Bay",80,75]
["FL, Panama City","Panama City","FL","Bay",80,75]
["FL, Panama City","Panama City","FL","Bay",80,75]
["FL, Pensacola ","Pensacola ","FL","Escambia",74,69]
[{"$f":"CONCATENATE(C199,\", \",B199)","v":"FL, Pensacola "},"Pensacola ","FL","Escambia",74,{"$f":"E199-5","v":69}]
["FL, Pensacola ","Pensacola ","FL","Escambia",74,69]
["FL, Pensacola ","Pensacola ","FL","Escambia",74,69]
["FL, Punta Gorda","Punta Gorda","FL","Charlotte",74,69]
[{"$f":"CONCATENATE(C203,\", \",B203)","v":"FL, Punta Gorda"},"Punta Gorda","FL","Charlotte",74,{"$f":"E203-5","v":69}]
[{"$f":"CONCATENATE(C204,\", \",B204)","v":"FL, Punta Gorda"},"Punta Gorda","FL","Charlotte",74,{"$f":"E204-5","v":69}]
["FL, Sarasota","Sarasota","FL","Sarasota",86,81]
[{"$f":"CONCATENATE(C206,\", \",B206)","v":"FL, Sarasota"},"Sarasota","FL","Sarasota",86,{"$f":"E206-5","v":81}]
["FL, Sarasota","Sarasota","FL","Sarasota",86,81]
["FL, Sebring","Sebring","FL","Highlands",74,69]
["FL, Sebring","Sebring","FL","Highlands",74,69]
["FL, Sebring","Sebring","FL","Highlands",74,69]
["FL, St. Augustine","St. Augustine","FL","St. Johns",80,75]
["FL, St. Augustine","St. Augustine","FL","St. Johns",80,75]
["FL, St. Augustine","St. Augustine","FL","St. Johns",80,75]
[{"$f":"CONCATENATE(C214,\", \",B214)","v":"FL, Stuart"},"Stuart","FL","Martin",80,{"$f":"E214-5","v":75}]
["FL, Stuart","Stuart","FL","Martin",80,75]
["FL, Stuart","Stuart","FL","Martin",80,75]
["FL, Tallahassee","Tallahassee","FL","Leon",80,75]
["FL, Tallahassee","Tallahassee","FL","Leon",80,75]
["FL, Tallahassee","Tallahassee","FL","Leon",80,75]
["FL, Tampa / St. Petersburg","Tampa / St. Petersburg","FL","Pinellas / Hillsborough",80,75]
["FL, Tampa / St. Petersburg","Tampa / St. Petersburg","FL","Pinellas / Hillsborough",80,75]
["FL, Tampa / St. Petersburg","Tampa / St. Petersburg","FL","Pinellas / Hillsborough",80,75]
["FL, Vero Beach","Vero Beach","FL","Indian River",74,69]
["FL, Vero Beach","Vero Beach","FL","Indian River",74,69]
[{"$f":"CONCATENATE(C225,\", \",B225)","v":"FL, Vero Beach"},"Vero Beach","FL","Indian River",74,{"$f":"E225-5","v":69}]
["GA, Athens","Athens","GA","Clarke",55,50]
["GA, Atlanta","Atlanta","GA","Fulton / Dekalb",55,50]
["GA, Atlanta","Atlanta","GA","Fulton / Dekalb",55,50]
["GA, Atlanta","Atlanta","GA","Fulton / Dekalb",55,50]
[{"$f":"CONCATENATE(C230,\", \",B230)","v":"GA, Augusta"},"Augusta","GA","Richmond",55,{"$f":"E230-5","v":50}]
["GA, Augusta","Augusta","GA","Richmond",55,50]
["GA, Augusta","Augusta","GA","Richmond",55,50]
[{"$f":"CONCATENATE(C233,\", \",B233)","v":"GA, Jekyll Island / Brunswick"},"Jekyll Island / Brunswick","GA","Glynn",55,{"$f":"E233-5","v":50}]
["GA, Jekyll Island / Brunswick","Jekyll Island / Brunswick","GA","Glynn",55,50]
["GA, Jekyll Island / Brunswick","Jekyll Island / Brunswick","GA","Glynn",55,50]
["GA, Marietta","Marietta","GA","Cobb",55,50]
["GA, Savannah","Savannah","GA","Chatham",55,50]
["GA, Savannah","Savannah","GA","Chatham",55,50]
["GA, Savannah","Savannah","GA","Chatham",55,50]
["IA, Dallas","Dallas","IA","Dallas",80,75]
["IA, Des Moines","Des Moines","IA","Polk",80,75]
[{"$f":"CONCATENATE(C242,\", \",B242)","v":"ID, Boise"},"Boise","ID","Ada",86,{"$f":"E242-5","v":81}]
["ID, Boise","Boise","ID","Ada",86,81]
["ID, Boise","Boise","ID","Ada",86,81]
["ID, Coeur d'Alene","Coeur d'Alene","ID","Kootenai",74,69]
["ID, Coeur d'Alene","Coeur d'Alene","ID","Kootenai",74,69]
["ID, Coeur d'Alene","Coeur d'Alene","ID","Kootenai",74,69]
["ID, Sun Valley / Ketchum","Sun Valley / Ketchum","ID","Blaine / Elmore",80,75]
["ID, Sun Valley / Ketchum","Sun Valley / Ketchum","ID","Blaine / Elmore",80,75]
["ID, Sun Valley / Ketchum","Sun Valley / Ketchum","ID","Blaine / Elmore",80,75]
["ID, Sun Valley / Ketchum","Sun Valley / Ketchum","ID","Blaine / Elmore",80,75]
["IL, Bolingbrook / Romeoville / Lemont","Bolingbrook / Romeoville / Lemont","IL","Will",74,69]
[{"$f":"CONCATENATE(C253,\", \",B253)","v":"IL, Chicago"},"Chicago","IL","Cook / Lake",92,{"$f":"E253-5","v":87}]
["IL, Chicago","Chicago","IL","Cook / Lake",92,87]
["IL, Chicago","Chicago","IL","Cook / Lake",92,87]
["IL, Chicago","Chicago","IL","Cook / Lake",92,87]
["IL, Chicago","Chicago","IL","Cook / Lake",92,87]
["IL, East St. Louis / O'Fallon / Fairview Heights","East St. Louis / O'Fallon / Fairview Heights","IL","St. Clair",86,81]
["IL, Oak Brook Terrace","Oak Brook Terrace","IL","DuPage",80,75]
["IN, Bloomington ","Bloomington ","IN","Monroe",74,69]
["IN, Bloomington ","Bloomington ","IN","Monroe",74,69]
["IN, Bloomington ","Bloomington ","IN","Monroe",74,69]
["IN, Indianapolis / Carmel","Indianapolis / Carmel","IN","Marion / Hamilton",80,75]
[{"$f":"CONCATENATE(C264,\", \",B264)","v":"IN, Lafayette / West Lafayette"},"Lafayette / West Lafayette","IN","Tippecanoe",74,{"$f":"E264-5","v":69}]
["IN, Lafayette / West Lafayette","Lafayette / West Lafayette","IN","Tippecanoe",74,69]
[{"$f":"CONCATENATE(C266,\", \",B266)","v":"KS, Kansas City / Overland Park"},"Kansas City / Overland Park","KS","Wyandotte / Johnson / Leavenworth",80,{"$f":"E266-5","v":75}]
["KY, Boone","Boone","KY","Boone",68,63]
["KY, Kenton","Kenton","KY","Kenton",86,81]
["KY, Lexington","Lexington","KY","Fayette",80,75]
["KY, Louisville","Louisville","KY","Jefferson",80,75]
["KY, Louisville","Louisville","KY","Jefferson",80,75]
["KY, Louisville","Louisville","KY","Jefferson",80,75]
["KY, Louisville","Louisville","KY","Jefferson",80,75]
[{"$f":"CONCATENATE(C274,\", \",B274)","v":"KY, Louisville"},"Louisville","KY","Jefferson",80,{"$f":"E274-5","v":75}]
["LA, Alexandria / Leesville / Natchitoches","Alexandria / Leesville / Natchitoches","LA","Allen / Jefferson Davis / Natchitoches / Rapides / Vernon Parishes",68,63]
["LA, New Orleans","New Orleans","LA","Orleans / Jefferson Parishes",80,75]
["LA, New Orleans","New Orleans","LA","Orleans / Jefferson Parishes",80,75]
["LA, New Orleans","New Orleans","LA","Orleans / Jefferson Parishes",80,75]
["LA, New Orleans","New Orleans","LA","Orleans / Jefferson Parishes",80,75]
[{"$f":"CONCATENATE(C280,\", \",B280)","v":"MA, Andover"},"Andover","MA","Essex",80,{"$f":"E280-5","v":75}]
["MA, Boston / Cambridge","Boston / Cambridge","MA","Suffolk, city of Cambridge",92,87]
["MA, Boston / Cambridge","Boston / Cambridge","MA","Suffolk, city of Cambridge",92,87]
["MA, Boston / Cambridge","Boston / Cambridge","MA","Suffolk, city of Cambridge",92,87]
["MA, Boston / Cambridge","Boston / Cambridge","MA","Suffolk, city of Cambridge",92,87]
["MA, Burlington / Woburn","Burlington / Woburn","MA","Middlesex less the city of Cambridge",86,81]
["MA, Burlington / Woburn","Burlington / Woburn","MA","Middlesex less the city of Cambridge",86,81]
["MA, Burlington / Woburn","Burlington / Woburn","MA","Middlesex less the city of Cambridge",86,81]
["MA, Falmouth","Falmouth","MA","City limits of Falmouth",86,81]
[{"$f":"CONCATENATE(C289,\", \",B289)","v":"MA, Falmouth"},"Falmouth","MA","City limits of Falmouth",86,{"$f":"E289-5","v":81}]
["MA, Falmouth","Falmouth","MA","City limits of Falmouth",86,81]
["MA, Hyannis","Hyannis","MA","Barnstable less the city of Falmouth",92,87]
["MA, Hyannis","Hyannis","MA","Barnstable less the city of Falmouth",92,87]
[{"$f":"CONCATENATE(C293,\", \",B293)","v":"MA, Hyannis"},"Hyannis","MA","Barnstable less the city of Falmouth",92,{"$f":"E293-5","v":87}]
["MA, Martha's Vineyard","Martha's Vineyard","MA","Dukes",92,87]
["MA, Martha's Vineyard","Martha's Vineyard","MA","Dukes",92,87]
["MA, Nantucket","Nantucket","MA","Nantucket",92,87]
["MA, Nantucket","Nantucket","MA","Nantucket",92,87]
[{"$f":"CONCATENATE(C298,\", \",B298)","v":"MA, Northampton"},"Northampton","MA","Hampshire",80,{"$f":"E298-5","v":75}]
["MA, Pittsfield","Pittsfield","MA","Berkshire",86,81]
["MA, Pittsfield","Pittsfield","MA","Berkshire",86,81]
["MA, Pittsfield","Pittsfield","MA","Berkshire",86,81]
[{"$f":"CONCATENATE(C302,\", \",B302)","v":"MA, Plymouth / Taunton / New Bedford"},"Plymouth / Taunton / New Bedford","MA","Plymouth / Bristol",80,{"$f":"E302-5","v":75}]
["MA, Quincy","Quincy","MA","Norfolk",80,75]
["MA, Quincy","Quincy","MA","Norfolk",80,75]
["MA, Quincy","Quincy","MA","Norfolk",80,75]
["MA, Springfield","Springfield","MA","Hampden",74,69]
["MA, Worcester","Worcester","MA","Worcester",80,75]
[{"$f":"CONCATENATE(C308,\", \",B308)","v":"MD, Aberdeen / Bel Air / Belcamp"},"Aberdeen / Bel Air / Belcamp","MD","Harford",74,{"$f":"E308-5","v":69}]
["MD, Annapolis","Annapolis","MD","Anne Arundel",80,75]
["MD, Annapolis","Annapolis","MD","Anne Arundel",80,75]
["MD, Annapolis","Annapolis","MD","Anne Arundel",80,75]
[{"$f":"CONCATENATE(C312,\", \",B312)","v":"MD, Baltimore City"},"Baltimore City","MD","Baltimore City",86,{"$f":"E312-5","v":81}]
["MD, Cambridge / St. Michaels","Cambridge / St. Michaels","MD","Dorchester / Talbot",80,75]
["MD, Cambridge / St. Michaels","Cambridge / St. Michaels","MD","Dorchester / Talbot",80,75]
["MD, Cambridge / St. Michaels","Cambridge / St. Michaels","MD","Dorchester / Talbot",80,75]
["MD, Centreville","Centreville","MD","Queen Anne",74,69]
["MD, Centreville","Centreville","MD","Queen Anne",74,69]
["MD, Centreville","Centreville","MD","Queen Anne",74,69]
["MD, Columbia","Columbia","MD","Howard",86,81]
["MD, Ocean City","Ocean City","MD","Worcester",80,75]
["MD, Ocean City","Ocean City","MD","Worcester",80,75]
["MD, Ocean City","Ocean City","MD","Worcester",80,75]
["ME, Bar Harbor / Rockport","Bar Harbor / Rockport","ME","Hancock / Knox",92,87]
[{"$f":"CONCATENATE(C324,\", \",B324)","v":"ME, Bar Harbor / Rockport"},"Bar Harbor / Rockport","ME","Hancock / Knox",92,{"$f":"E324-5","v":87}]
["ME, Bar Harbor / Rockport","Bar Harbor / Rockport","ME","Hancock / Knox",92,87]
["ME, Bar Harbor / Rockport","Bar Harbor / Rockport","ME","Hancock / Knox",92,87]
["ME, Bar Harbor / Rockport","Bar Harbor / Rockport","ME","Hancock / Knox",92,87]
["ME, Kennebunk / Kittery / Sanford","Kennebunk / Kittery / Sanford","ME","York ",86,81]
[{"$f":"CONCATENATE(C329,\", \",B329)","v":"ME, Kennebunk / Kittery / Sanford"},"Kennebunk / Kittery / Sanford","ME","York ",86,{"$f":"E329-5","v":81}]
["ME, Kennebunk / Kittery / Sanford","Kennebunk / Kittery / Sanford","ME","York ",86,81]
["ME, Kennebunk / Kittery / Sanford","Kennebunk / Kittery / Sanford","ME","York ",86,81]
["ME, Portland","Portland","ME","Cumberland / Sagadahoc",80,75]
["ME, Portland","Portland","ME","Cumberland / Sagadahoc",80,75]
["ME, Portland","Portland","ME","Cumberland / Sagadahoc",80,75]
["ME, Portland","Portland","ME","Cumberland / Sagadahoc",80,75]
[{"$f":"CONCATENATE(C336,\", \",B336)","v":"MI, Ann Arbor"},"Ann Arbor","MI","Washtenaw",80,{"$f":"E336-5","v":75}]
["MI, Ann Arbor","Ann Arbor","MI","Washtenaw",80,75]
["MI, Ann Arbor","Ann Arbor","MI","Washtenaw",80,75]
[{"$f":"CONCATENATE(C339,\", \",B339)","v":"MI, Detroit"},"Detroit","MI","Wayne",74,{"$f":"E339-5","v":69}]
["MI, Grand Rapids","Grand Rapids","MI","Kent",80,75]
["MI, Holland","Holland","MI","Ottawa",74,69]
["MI, Holland","Holland","MI","Ottawa",74,69]
["MI, Holland","Holland","MI","Ottawa",74,69]
[{"$f":"CONCATENATE(C344,\", \",B344)","v":"MI, Mackinac Island"},"Mackinac Island","MI","Mackinac",86,{"$f":"E344-5","v":81}]
[{"$f":"CONCATENATE(C345,\", \",B345)","v":"MI, Mackinac Island"},"Mackinac Island","MI","Mackinac",86,{"$f":"E345-5","v":81}]
["MI, Mackinac Island","Mackinac Island","MI","Mackinac",86,81]
["MI, Midland","Midland","MI","Midland",74,69]
["MI, Muskegon","Muskegon","MI","Muskegon",68,63]
["MI, Muskegon","Muskegon","MI","Muskegon",68,63]
["MI, Muskegon","Muskegon","MI","Muskegon",68,63]
["MI, Petoskey","Petoskey","MI","Emmet",86,81]
["MI, Petoskey","Petoskey","MI","Emmet",86,81]
["MI, Petoskey","Petoskey","MI","Emmet",86,81]
["MI, Petoskey","Petoskey","MI","Emmet",86,81]
[{"$f":"CONCATENATE(C355,\", \",B355)","v":"MI, Pontiac / Auburn Hills "},"Pontiac / Auburn Hills ","MI","Oakland",80,{"$f":"E355-5","v":75}]
["MI, South Haven","South Haven","MI","Van Buren",68,63]
["MI, South Haven","South Haven","MI","Van Buren",68,63]
["MI, South Haven","South Haven","MI","Van Buren",68,63]
["MI, Traverse City","Traverse City","MI","Grand Traverse",80,75]
["MI, Traverse City","Traverse City","MI","Grand Traverse",80,75]
["MI, Traverse City","Traverse City","MI","Grand Traverse",80,75]
[{"$f":"CONCATENATE(C362,\", \",B362)","v":"MN, Duluth"},"Duluth","MN","St. Louis",86,{"$f":"E362-5","v":81}]
["MN, Duluth","Duluth","MN","St. Louis",86,81]
["MN, Duluth","Duluth","MN","St. Louis",86,81]
[{"$f":"CONCATENATE(C365,\", \",B365)","v":"MN, Minneapolis / St. Paul"},"Minneapolis / St. Paul","MN","Hennepin / Ramsey",92,{"$f":"E365-5","v":87}]
["MN, Rochester","Rochester","MN","Olmsted",80,75]
["MO, Kansas City","Kansas City","MO","Jackson / Clay / Cass / Platte",80,75]
["MO, St. Louis","St. Louis","MO","St. Louis / St. Louis City / St. Charles",86,81]
[{"$f":"CONCATENATE(C369,\", \",B369)","v":"MS, Oxford"},"Oxford","MS","Lafayette",68,{"$f":"E369-5","v":63}]
["Please Select","Southaven","MS","Desoto",68]
[{"$f":"CONCATENATE(C371,\", \",B371)","v":"MS, Starkville "},"Starkville ","MS","Oktibbeha",68,{"$f":"E371-5","v":63}]
["MT, Big Sky / West Yellowstone/Gardiner","Big Sky / West Yellowstone/Gardiner","MT","Gallatin/Park",80,75]
["MT, Big Sky / West Yellowstone/Gardiner","Big Sky / West Yellowstone/Gardiner","MT","Gallatin/Park",80,75]
["MT, Helena","Helena","MT","Lewis and Clark",74,69]
["MT, Kalispell/Whitefish","Kalispell/Whitefish","MT","Flathead",80,75]
["MT, Kalispell/Whitefish","Kalispell/Whitefish","MT","Flathead",80,75]
["MT, Missoula","Missoula","MT","Missoula",74,69]
["MT, Missoula","Missoula","MT","Missoula",74,69]
["NC, Asheville ","Asheville ","NC","Buncombe",80,75]
["NC, Asheville ","Asheville ","NC","Buncombe",80,75]
["NC, Atlantic Beach / Morehead City","Atlantic Beach / Morehead City","NC","Carteret",74,69]
["NC, Atlantic Beach / Morehead City","Atlantic Beach / Morehead City","NC","Carteret",74,69]
["NC, Atlantic Beach / Morehead City","Atlantic Beach / Morehead City","NC","Carteret",74,69]
["NC, Chapel Hill","Chapel Hill","NC","Orange",80,75]
["NC, Charlotte","Charlotte","NC","Mecklenburg",80,75]
["NC, Durham","Durham","NC","Durham",74,69]
["NC, Fayetteville","Fayetteville","NC","Cumberland",68,63]
["NC, Greensboro","Greensboro","NC","Guilford",74,69]
["NC, Greensboro","Greensboro","NC","Guilford",74,69]
["NC, Greensboro","Greensboro","NC","Guilford",74,69]
["NC, Kill Devil Hills","Kill Devil Hills","NC","Dare",74,69]
["NC, Kill Devil Hills","Kill Devil Hills","NC","Dare",74,69]
["NC, Kill Devil Hills","Kill Devil Hills","NC","Dare",74,69]
["NC, Kill Devil Hills","Kill Devil Hills","NC","Dare",74,69]
["NC, Raleigh","Raleigh","NC","Wake",74,69]
["NC, Wilmington","Wilmington","NC","New Hanover",74,69]
["NC, Wilmington","Wilmington","NC","New Hanover",74,69]
["NC, Wilmington","Wilmington","NC","New Hanover",74,69]
["NE, Omaha","Omaha","NE","Douglas",80,75]
["NH, Concord","Concord","NH","Merrimack",74,69]
["NH, Conway","Conway","NH","Caroll",80,75]
["NH, Conway","Conway","NH","Caroll",80,75]
["NH, Conway","Conway","NH","Caroll",80,75]
["NH, Conway","Conway","NH","Caroll",80,75]
["NH, Durham","Durham","NH","Strafford",74,69]
["NH, Durham","Durham","NH","Strafford",74,69]
["NH, Durham","Durham","NH","Strafford",74,69]
["NH, Laconia","Laconia","NH","Belknap",74,69]
["NH, Laconia","Laconia","NH","Belknap",74,69]
["NH, Laconia","Laconia","NH","Belknap",74,69]
["NH, Lebanon / Lincoln / West Lebanon","Lebanon / Lincoln / West Lebanon","NH","Grafton",74,69]
["NH, Lebanon / Lincoln / West Lebanon","Lebanon / Lincoln / West Lebanon","NH","Grafton",74,69]
["NH, Lebanon / Lincoln / West Lebanon","Lebanon / Lincoln / West Lebanon","NH","Grafton",74,69]
["NH, Manchester","Manchester","NH","Hillsborough",74,69]
["NH, Portsmouth","Portsmouth","NH","Rockingham",74,69]
["NH, Portsmouth","Portsmouth","NH","Rockingham",74,69]
["NH, Portsmouth","Portsmouth","NH","Rockingham",74,69]
["NH, Portsmouth","Portsmouth","NH","Rockingham",74,69]
["NJ, Cherry Hill / Moorestown","Cherry Hill / Moorestown","NJ","Camden / Burlington",80,75]
["NJ, Eatontown / Freehold","Eatontown / Freehold","NJ","Monmouth",86,81]
["NJ, Edison / Piscataway","Edison / Piscataway","NJ","Middlesex ",80,75]
["NJ, Flemington","Flemington","NJ","Hunterdon",80,75]
["NJ, Newark","Newark","NJ","Essex / Bergen / Hudson / Passaic",86,81]
["NJ, Parsippany","Parsippany","NJ","Morris",80,75]
["NJ, Princeton / Trenton","Princeton / Trenton","NJ","Mercer",86,81]
["NJ, Somerset","Somerset","NJ","Somerset",80,75]
["NJ, Springfield / Cranford / New Providence","Springfield / Cranford / New Providence","NJ","Union",80,75]
["NJ, Toms River","Toms River","NJ","Ocean",74,69]
["NJ, Toms River","Toms River","NJ","Ocean",74,69]
["NJ, Toms River","Toms River","NJ","Ocean",74,69]
["NM, Albuquerque","Albuquerque","NM","Bernalillo",80,75]
["NM, Carlsbad","Carlsbad","NM","Eddy",74,69]
["NM, Santa Fe","Santa Fe","NM","Santa Fe",80,75]
["NM, Santa Fe","Santa Fe","NM","Santa Fe",80,75]
[{"$f":"CONCATENATE(C435,\", \",B435)","v":"NM, Santa Fe"},"Santa Fe","NM","Santa Fe",80,{"$f":"E435-5","v":75}]
["NM, Santa Fe","Santa Fe","NM","Santa Fe",80,75]
["NM, Taos","Taos","NM","Taos",74,69]
["NV, Incline Village / Reno / Sparks","Incline Village / Reno / Sparks","NV","Washoe",80,75]
["NV, Incline Village / Reno / Sparks","Incline Village / Reno / Sparks","NV","Washoe",80,75]
["NV, Incline Village / Reno / Sparks","Incline Village / Reno / Sparks","NV","Washoe",80,75]
["NV, Las Vegas","Las Vegas","NV","Clark",86,81]
["NV, Las Vegas","Las Vegas","NV","Clark",86,81]
["NV, Las Vegas","Las Vegas","NV","Clark",86,81]
["NY, Albany","Albany","NY","Albany",86,81]
["NY, Binghamton","Binghamton","NY","Broome",74,69]
["NY, Buffalo","Buffalo","NY","Erie",80,75]
["NY, Buffalo","Buffalo","NY","Erie",80,75]
["NY, Buffalo","Buffalo","NY","Erie",80,75]
["NY, Floral Park / Garden City / Great Neck","Floral Park / Garden City / Great Neck","NY","Nassau",86,81]
["NY, Glens Falls","Glens Falls","NY","Warren",86,81]
["NY, Glens Falls","Glens Falls","NY","Warren",86,81]
["NY, Glens Falls","Glens Falls","NY","Warren",86,81]
["NY, Ithaca","Ithaca","NY","Tompkins",80,75]
["NY, Kingston","Kingston","NY","Ulster",86,81]
["NY, Lake Placid","Lake Placid","NY","Essex",86,81]
["NY, Lake Placid","Lake Placid","NY","Essex",86,81]
["NY, Lake Placid","Lake Placid","NY","Essex",86,81]
["NY, Lake Placid","Lake Placid","NY","Essex",86,81]
["NY, New York City","New York City","NY","Bronx / Kings / New York / Queens / Richmond",92,87]
["NY, New York City","New York City","NY","Bronx / Kings / New York / Queens / Richmond",92,87]
["NY, New York City","New York City","NY","Bronx / Kings / New York / Queens / Richmond",92,87]
["NY, New York City","New York City","NY","Bronx / Kings / New York / Queens / Richmond",92,87]
["NY, New York City","New York City","NY","Bronx / Kings / New York / Queens / Richmond",92,87]
["NY, Niagara Falls","Niagara Falls","NY","Niagara",80,75]
["NY, Niagara Falls","Niagara Falls","NY","Niagara",80,75]
["NY, Niagara Falls","Niagara Falls","NY","Niagara",80,75]
["NY, Nyack / Palisades","Nyack / Palisades","NY","Rockland",80,75]
["NY, Poughkeepsie","Poughkeepsie","NY","Dutchess",80,75]
["NY, Riverhead / Ronkonkoma / Melville","Riverhead / Ronkonkoma / Melville","NY","Suffolk",86,81]
["NY, Rochester","Rochester","NY","Monroe",80,75]
["NY, Saratoga Springs / Schenectady","Saratoga Springs / Schenectady","NY","Saratoga / Schenectady",80,75]
["NY, Saratoga Springs / Schenectady","Saratoga Springs / Schenectady","NY","Saratoga / Schenectady",80,75]
["NY, Saratoga Springs / Schenectady","Saratoga Springs / Schenectady","NY","Saratoga / Schenectady",80,75]
["NY, Syracuse / Oswego","Syracuse / Oswego","NY","Onondaga / Oswego",80,75]
["NY, Tarrytown / White Plains / New Rochelle","Tarrytown / White Plains / New Rochelle","NY","Westchester",92,87]
["NY, Troy ","Troy ","NY","Rensselaer",80,75]
["NY, West Point","West Point","NY","Orange",80,75]
["OH, Cincinnati","Cincinnati","OH","Hamilton / Clermont",86,81]
["OH, Cleveland","Cleveland","OH","Cuyahoga",80,75]
["OH, Columbus","Columbus","OH","Franklin",80,75]
["OH, Dayton / Fairborn","Dayton / Fairborn","OH","Greene / Montgomery",74,69]
["OH, Hamilton","Hamilton","OH","Butler / Warren",74,69]
["OH, Sandusky","Sandusky","OH","Erie",68,63]
["OH, Sandusky","Sandusky","OH","Erie",68,63]
["OH, Sandusky","Sandusky","OH","Erie",68,63]
["OK, Oklahoma City","Oklahoma City","OK","Oklahoma",80,75]
["OR, Beaverton","Beaverton","OR","Washington",80,75]
["OR, Bend","Bend","OR","Deschutes",86,81]
["OR, Bend","Bend","OR","Deschutes",86,81]
["OR, Bend","Bend","OR","Deschutes",86,81]
["OR, Clackamas","Clackamas","OR","Clackamas",80,75]
["OR, Eugene / Florence","Eugene / Florence","OR","Lane",80,75]
["OR, Eugene / Florence","Eugene / Florence","OR","Lane",80,75]
["OR, Eugene / Florence","Eugene / Florence","OR","Lane",80,75]
["OR, Lincoln City","Lincoln City","OR","Lincoln",92,87]
["OR, Lincoln City","Lincoln City","OR","Lincoln",92,87]
["OR, Lincoln City","Lincoln City","OR","Lincoln",92,87]
["OR, Portland","Portland","OR","Multnomah",86,81]
[{"$f":"CONCATENATE(C499,\", \",B499)","v":"OR, Seaside"},"Seaside","OR","Clatsop",86,{"$f":"E499-5","v":81}]
["OR, Seaside","Seaside","OR","Clatsop",86,81]
["OR, Seaside","Seaside","OR","Clatsop",86,81]
["PA, Allentown / Easton / Bethlehem","Allentown / Easton / Bethlehem","PA","Lehigh / Northampton",74,69]
["PA, Bucks","Bucks","PA","Bucks",80,75]
["PA, Chester / Radnor / Essington","Chester / Radnor / Essington","PA","Delaware",80,75]
["PA, Gettysburg","Gettysburg","PA","Adams",68,63]
["PA, Gettysburg","Gettysburg","PA","Adams",68,63]
["PA, Gettysburg","Gettysburg","PA","Adams",68,63]
["PA, Harrisburg","Harrisburg","PA","Dauphin County excluding Hershey",74,69]
["PA, Hershey","Hershey","PA","Hershey",80,75]
["PA, Hershey","Hershey","PA","Hershey",80,75]
["PA, Hershey","Hershey","PA","Hershey",80,75]
["PA, Lancaster","Lancaster","PA","Lancaster",74,69]
["PA, Malvern / Frazer / Berwyn","Malvern / Frazer / Berwyn","PA","Chester",80,75]
["PA, Montgomery","Montgomery","PA","Montgomery",80,75]
["PA, Philadelphia","Philadelphia","PA","Philadelphia",92,87]
["PA, Philadelphia","Philadelphia","PA","Philadelphia",92,87]
["PA, Philadelphia","Philadelphia","PA","Philadelphia",92,87]
["PA, Philadelphia","Philadelphia","PA","Philadelphia",92,87]
["PA, Pittsburgh","Pittsburgh","PA","Allegheny",80,75]
["PA, Reading","Reading","PA","Berks",74,69]
["PA, State College ","State College ","PA","Centre",74,69]
["RI, Jamestown / Middletown / Newport","Jamestown / Middletown / Newport","RI","Newport ",80,75]
["RI, Jamestown / Middletown / Newport","Jamestown / Middletown / Newport","RI","Newport ",80,75]
["RI, Jamestown / Middletown / Newport","Jamestown / Middletown / Newport","RI","Newport ",80,75]
["RI, Jamestown / Middletown / Newport","Jamestown / Middletown / Newport","RI","Newport ",80,75]
["RI, Providence / Bristol","Providence / Bristol","RI","Providence / Bristol",80,75]
["SC, Charleston","Charleston","SC","Charleston / Berkeley / Dorchester",92,87]
["SC, Charleston","Charleston","SC","Charleston / Berkeley / Dorchester",92,87]
["SC, Charleston","Charleston","SC","Charleston / Berkeley / Dorchester",92,87]
["SC, Charleston","Charleston","SC","Charleston / Berkeley / Dorchester",92,87]
["SC, Columbia","Columbia","SC","Richland / Lexington",74,69]
["SC, Hilton Head","Hilton Head","SC","Beaufort",80,75]
["SC, Hilton Head","Hilton Head","SC","Beaufort",80,75]
["SC, Hilton Head","Hilton Head","SC","Beaufort",80,75]
["SC, Hilton Head","Hilton Head","SC","Beaufort",80,75]
["SC, Hilton Head","Hilton Head","SC","Beaufort",80,75]
["SC, Myrtle Beach","Myrtle Beach","SC","Horry",74,69]
["SC, Myrtle Beach","Myrtle Beach","SC","Horry",74,69]
["SC, Myrtle Beach","Myrtle Beach","SC","Horry",74,69]
["SC, Myrtle Beach","Myrtle Beach","SC","Horry",74,69]
["SD, Deadwood / Spearfish ","Deadwood / Spearfish ","SD","Lawrence",80,75]
["SD, Deadwood / Spearfish ","Deadwood / Spearfish ","SD","Lawrence",80,75]
["SD, Deadwood / Spearfish ","Deadwood / Spearfish ","SD","Lawrence",80,75]
["SD, Hot Springs","Hot Springs","SD","Fall River / Custer",74,69]
["SD, Hot Springs","Hot Springs","SD","Fall River / Custer",74,69]
["SD, Rapid City","Rapid City","SD","Pennington",74,69]
["SD, Rapid City","Rapid City","SD","Pennington",74,69]
["SD, Rapid City","Rapid City","SD","Pennington",74,69]
["TN, Brentwood / Franklin","Brentwood / Franklin","TN","Williamson",86,81]
["TN, Chattanooga ","Chattanooga ","TN","Hamilton",74,69]
["TN, Knoxville","Knoxville","TN","Knox",74,69]
["TN, Memphis","Memphis","TN","Shelby",74,69]
["TN, Nashville","Nashville","TN","Davidson",86,81]
["TN, Nashville","Nashville","TN","Davidson",86,81]
["TN, Nashville","Nashville","TN","Davidson",86,81]
["TX, Arlington / Fort Worth / Grapevine","Arlington / Fort Worth / Grapevine","TX","Tarrant County / City of Grapevine",80,75]
["TX, Austin","Austin","TX","Travis",80,75]
["TX, Austin","Austin","TX","Travis",80,75]
["TX, Austin","Austin","TX","Travis",80,75]
["TX, Big Spring","Big Spring","TX","Howard",68,63]
["TX, Dallas","Dallas","TX","Dallas ",80,75]
["TX, Dallas","Dallas","TX","Dallas ",80,75]
[{"$f":"CONCATENATE(C563,\", \",B563)","v":"TX, Dallas"},"Dallas","TX","Dallas ",80,{"$f":"E563-5","v":75}]
["TX, Galveston","Galveston","TX","Galveston",74,69]
["TX, Galveston","Galveston","TX","Galveston",74,69]
["TX, Galveston","Galveston","TX","Galveston",74,69]
["TX, Houston","Houston","TX","Montgomery / Fort Bend / Harris",80,75]
["TX, Midland / Odessa","Midland / Odessa","TX","Midland / Andrews / Ector / Martin",74,69]
["TX, Midland / Odessa","Midland / Odessa","TX","Midland / Andrews / Ector / Martin",74,69]
["TX, Midland / Odessa","Midland / Odessa","TX","Midland / Andrews / Ector / Martin",74,69]
["TX, Pecos","Pecos","TX","Reeves",74,69]
["TX, Plano","Plano","TX","Collin",80,75]
["TX, San Antonio","San Antonio","TX","Bexar",74,69]
["TX, San Antonio","San Antonio","TX","Bexar",74,69]
["TX, San Antonio","San Antonio","TX","Bexar",74,69]
["TX, South Padre Island","South Padre Island","TX","Cameron",74,69]
["TX, South Padre Island","South Padre Island","TX","Cameron",74,69]
["TX, South Padre Island","South Padre Island","TX","Cameron",74,69]
["UT, Moab","Moab","UT","Grand",86,81]
["UT, Moab","Moab","UT","Grand",86,81]
["UT, Moab","Moab","UT","Grand",86,81]
["UT, Moab","Moab","UT","Grand",86,81]
["UT, Moab","Moab","UT","Grand",86,81]
["UT, Park City","Park City","UT","Summit",92,87]
["UT, Park City","Park City","UT","Summit",92,87]
["UT, Park City","Park City","UT","Summit",92,87]
["UT, Provo","Provo","UT","Utah",74,69]
["UT, Salt Lake City","Salt Lake City","UT","Salt Lake / Tooele",80,75]
["VA, Blacksburg","Blacksburg","VA","Montgomery",68,63]
["VA, Charlottesville","Charlottesville","VA","City of Charlottesville / Albemarle",80,75]
["VA, Loudoun","Loudoun","VA","Loudoun",80,75]
["VA, Lynchburg","Lynchburg","VA","Campbell / Lynchburg City",68,63]
["VA, Lynchburg","Lynchburg","VA","Campbell / Lynchburg City",68,63]
["VA, Lynchburg","Lynchburg","VA","Campbell / Lynchburg City",68,63]
["VA, Richmond","Richmond","VA","City of Richmond",80,75]
["VA, Roanoke","Roanoke","VA","City limits of Roanoke",74,69]
["VA, Virginia Beach","Virginia Beach","VA","City of Virginia Beach",74,69]
["VA, Virginia Beach","Virginia Beach","VA","City of Virginia Beach",74,69]
["VA, Virginia Beach","Virginia Beach","VA","City of Virginia Beach",74,69]
["VA, Wallops Island","Wallops Island","VA","Accomack",68,63]
["VA, Wallops Island","Wallops Island","VA","Accomack",68,63]
["VA, Wallops Island","Wallops Island","VA","Accomack",68,63]
["VA, Williamsburg / York","Williamsburg / York","VA","James City / York Counties / City of Williamsburg",80,75]
["VA, Williamsburg / York","Williamsburg / York","VA","James City / York Counties / City of Williamsburg",80,75]
["VA, Williamsburg / York","Williamsburg / York","VA","James City / York Counties / City of Williamsburg",80,75]
["VA, Williamsburg / York","Williamsburg / York","VA","James City / York Counties / City of Williamsburg",80,75]
["VT, Burlington","Burlington","VT","Chittenden",86,81]
["VT, Burlington","Burlington","VT","Chittenden",86,81]
["VT, Burlington","Burlington","VT","Chittenden",86,81]
["VT, Manchester","Manchester","VT","Bennington",86,81]
["VT, Manchester","Manchester","VT","Bennington",86,81]
["VT, Manchester","Manchester","VT","Bennington",86,81]
["VT, Montpelier","Montpelier","VT","Washington",74,69]
["VT, Montpelier","Montpelier","VT","Washington",74,69]
["VT, Montpelier","Montpelier","VT","Washington",74,69]
["VT, Stowe ","Stowe ","VT","Lamoille",86,81]
["VT, Stowe ","Stowe ","VT","Lamoille",86,81]
["VT, Stowe ","Stowe ","VT","Lamoille",86,81]
["VT, White River Junction","White River Junction","VT","Windsor",86,81]
["WA, Everett / Lynnwood","Everett / Lynnwood","WA","Snohomish",86,81]
["WA, Everett / Lynnwood","Everett / Lynnwood","WA","Snohomish",86,81]
["WA, Everett / Lynnwood","Everett / Lynnwood","WA","Snohomish",86,81]
["WA, Ocean Shores","Ocean Shores","WA","Grays Harbor",86,81]
["WA, Ocean Shores","Ocean Shores","WA","Grays Harbor",86,81]
["WA, Ocean Shores","Ocean Shores","WA","Grays Harbor",86,81]
["WA, Olympia / Tumwater","Olympia / Tumwater","WA","Thurston",80,75]
[{"$f":"CONCATENATE(C627,\", \",B627)","v":"WA, Olympia / Tumwater"},"Olympia / Tumwater","WA","Thurston",80,{"$f":"E627-5","v":75}]
["WA, Olympia / Tumwater","Olympia / Tumwater","WA","Thurston",80,75]
["WA, Olympia / Tumwater","Olympia / Tumwater","WA","Thurston",80,75]
["WA, Port Angeles / Port Townsend","Port Angeles / Port Townsend","WA","Clallam / Jefferson",92,87]
["WA, Port Angeles / Port Townsend","Port Angeles / Port Townsend","WA","Clallam / Jefferson",92,87]
["WA, Port Angeles / Port Townsend","Port Angeles / Port Townsend","WA","Clallam / Jefferson",92,87]
["WA, Richland / Pasco","Richland / Pasco","WA","Benton / Franklin",86,81]
["WA, Seattle","Seattle","WA","King",92,87]
["WA, Seattle","Seattle","WA","King",92,87]
["WA, Spokane","Spokane","WA","Spokane",86,81]
["WA, Tacoma","Tacoma","WA","Pierce",86,81]
["WA, Vancouver","Vancouver","WA","Clark / Cowlitz / Skamania",86,81]
["WI, Madison","Madison","WI","Dane",80,75]
["WI, Madison","Madison","WI","Dane",80,75]
["WI, Madison","Madison","WI","Dane",80,75]
["WI, Milwaukee","Milwaukee","WI","Milwaukee",80,75]
["WI, Sturgeon Bay","Sturgeon Bay","WI","Door",80,75]
["WI, Sturgeon Bay","Sturgeon Bay","WI","Door",80,75]
["WI, Sturgeon Bay","Sturgeon Bay","WI","Door",80,75]
["WV, Charles Town","Charles Town","WV","Jefferson",68,63]
["WV, Charleston","Charleston","WV","Kanawha",68,63]
["WY, Cody","Cody","WY","Park",74,69]
["WY, Cody","Cody","WY","Park",74,69]
["WY, Jackson / Pinedale","Jackson / Pinedale","WY","Teton / Sublette",92,87]
["WY, Jackson / Pinedale","Jackson / Pinedale","WY","Teton / Sublette",92,87]